[Event "Titled Tuesday Blitz October 11 Late 2022"]
[White "Erdogdu, Mert"]
[Black "Mirzoev, Azer"]
[WhiteFideId "6301495"]
[BlackFideId "13400304"]
[WhiteElo "2413"]
[BlackElo "2525"]
[Result "1-0"]
[Round "09"]
[TimeControl "180+1"]
[Date "2022.10.11"]
[WhiteClock "0:00:04"]
[BlackClock "0:00:01"]

1. e4 {[%clk 0:03:00]}  Nf6 {[%clk 0:03:00]} 2. e5 {[%clk 0:03:00]}  Nd5 {[%clk 0:03:00]} 3. c4 {[%clk 0:03:01]}  Nb6 {[%clk 0:03:00]} 4. d4 {[%clk 0:03:01]}  d6 {[%clk 0:03:00]} 5. exd6 {[%clk 0:03:02]}  exd6 {[%clk 0:03:00]} 6. Nc3 {[%clk 0:03:03]}  Be7 {[%clk 0:03:01]} 7. Bd3 {[%clk 0:03:04]}  Nc6 {[%clk 0:02:59]} 8. Nge2 {[%clk 0:03:04]}  Nb4 {[%clk 0:02:58]} 9. Bb1 {[%clk 0:02:40]}  O-O {[%clk 0:02:51]} 10. a3 {[%clk 0:02:37]}  Nc6 {[%clk 0:02:51]} 11. O-O {[%clk 0:02:36]}  Re8 {[%clk 0:02:45]} 12. b3 {[%clk 0:02:34]}  Bg4 {[%clk 0:02:38]} 13. Qd3 {[%clk 0:02:24]}  g6 {[%clk 0:02:35]} 14. Ng3 {[%clk 0:02:20]}  Bf6 {[%clk 0:02:23]} 15. Be3 {[%clk 0:02:20]}  Bg7 {[%clk 0:02:20]} 16. h3 {[%clk 0:02:16]}  Bd7 {[%clk 0:02:19]} 17. Ba2 {[%clk 0:02:01]}  Qh4 {[%clk 0:02:08]} 18. Rad1 {[%clk 0:01:47]}  h6 {[%clk 0:02:00]} 19. b4 {[%clk 0:01:35]}  Be6 {[%clk 0:01:25]} 20. b5 {[%clk 0:01:11]}  Na5 {[%clk 0:01:18]} 21. d5 {[%clk 0:01:06]}  Bd7 {[%clk 0:01:11]} 22. c5 {[%clk 0:00:57]}  dxc5 {[%clk 0:01:07]} 23. Bxc5 {[%clk 0:00:57]}  Nac4 {[%clk 0:01:02]} 24. a4 {[%clk 0:00:49]}  Nb2 {[%clk 0:01:00]} 25. Qc2 {[%clk 0:00:44]}  Nxd1 {[%clk 0:00:59]} 26. Rxd1 {[%clk 0:00:45]}  Rad8 {[%clk 0:00:50]} 27. d6 {[%clk 0:00:40]}  cxd6 {[%clk 0:00:45]} 28. Bxb6 {[%clk 0:00:40]}  axb6 {[%clk 0:00:42]} 29. Qxg6 {[%clk 0:00:38]}  Be6 {[%clk 0:00:34]} 30. Bxe6 {[%clk 0:00:37]}  fxe6 {[%clk 0:00:28]} 31. Nce4 {[%clk 0:00:26]}  Qe7 {[%clk 0:00:15]} 32. Nh5 {[%clk 0:00:23]}  Kh8 {[%clk 0:00:15]} 33. Rd3 {[%clk 0:00:17]}  Rf8 {[%clk 0:00:13]} 34. Rg3 {[%clk 0:00:16]}  Rf7 {[%clk 0:00:09]} 35. Nxg7 {[%clk 0:00:10]}  Rxg7 {[%clk 0:00:09]} 36. Qxh6+ {[%clk 0:00:11]}  Rh7 {[%clk 0:00:09]} 37. Qe3 {[%clk 0:00:08]}  e5 {[%clk 0:00:07]} 38. Ng5 {[%clk 0:00:08]}  Rg7 {[%clk 0:00:07]} 39. h4 {[%clk 0:00:08]}  Rf8 {[%clk 0:00:06]} 40. Qe2 {[%clk 0:00:08]}  Kg8 {[%clk 0:00:05]} 41. Qc4+ {[%clk 0:00:07]}  Kh8 {[%clk 0:00:05]} 42. Qg4 {[%clk 0:00:07]}  Qe8 {[%clk 0:00:04]} 43. Rd3 {[%clk 0:00:05]}  Rf4 {[%clk 0:00:04]} 44. Qg3 {[%clk 0:00:04]}  Qg6 {[%clk 0:00:03]} 45. Re3 {[%clk 0:00:04]}  Rxa4 {[%clk 0:00:02]} 46. Rf3 {[%clk 0:00:04]}  Rf4 {[%clk 0:00:01]} 47. Rxf4 {[%clk 0:00:04]}  exf4 {[%clk 0:00:02]} 48. Qxf4 {[%clk 0:00:05]}  Rg8 {[%clk 0:00:02]} 49. Nf7+ {[%clk 0:00:05]}  Kg7 {[%clk 0:00:01]} 50. Ng5 {[%clk 0:00:05]}  Re8 {[%clk 0:00:01]} 51. g3 {[%clk 0:00:05]}  Re5 {[%clk 0:00:01]} 52. Qd4 {[%clk 0:00:05]}  Qf6 {[%clk 0:00:01]} 53. Kh2 {[%clk 0:00:04]} 1-0


[Site "https://www.chess.com"]

[Event "Titled Tuesday Blitz October 11 Late 2022"]
[White "Fedoseev, Vladimir"]
[Black "Duda, Jan-Krzysztof"]
[WhiteFideId "24130737"]
[BlackFideId "1170546"]
[WhiteElo "2726"]
[BlackElo "2779"]
[Result "1-0"]
[Round "09"]
[TimeControl "180+1"]
[Date "2022.10.11"]
[WhiteClock "0:00:06"]
[BlackClock "0:00:01"]

1. d4 {[%clk 0:03:00]}  Nf6 {[%clk 0:03:00]} 2. Nf3 {[%clk 0:03:00]}  d5 {[%clk 0:03:00]} 3. e3 {[%clk 0:02:59]}  e6 {[%clk 0:02:56]} 4. c4 {[%clk 0:02:57]}  Be7 {[%clk 0:02:55]} 5. Nc3 {[%clk 0:02:57]}  O-O {[%clk 0:02:56]} 6. a3 {[%clk 0:02:56]}  b6 {[%clk 0:02:54]} 7. cxd5 {[%clk 0:02:55]}  exd5 {[%clk 0:02:53]} 8. Be2 {[%clk 0:02:54]}  c5 {[%clk 0:02:50]} 9. b3 {[%clk 0:02:54]}  h6 {[%clk 0:02:44]} 10. Bb2 {[%clk 0:02:52]}  Nc6 {[%clk 0:02:44]} 11. O-O {[%clk 0:02:41]}  Be6 {[%clk 0:02:43]} 12. Rc1 {[%clk 0:02:38]}  Rc8 {[%clk 0:02:38]} 13. Ba6 {[%clk 0:02:34]}  Rc7 {[%clk 0:02:38]} 14. Na4 {[%clk 0:02:21]}  Nb8 {[%clk 0:02:14]} 15. Be2 {[%clk 0:02:15]}  Nbd7 {[%clk 0:02:14]} 16. Nc3 {[%clk 0:01:51]}  Qa8 {[%clk 0:02:13]} 17. h3 {[%clk 0:01:41]}  a6 {[%clk 0:02:10]} 18. a4 {[%clk 0:01:31]}  Rfc8 {[%clk 0:02:07]} 19. a5 {[%clk 0:01:27]}  bxa5 {[%clk 0:02:00]} 20. Ra1 {[%clk 0:01:26]}  cxd4 {[%clk 0:01:58]} 21. Qxd4 {[%clk 0:01:13]}  Bc5 {[%clk 0:01:42]} 22. Qf4 {[%clk 0:01:09]}  Bb4 {[%clk 0:01:40]} 23. Na4 {[%clk 0:01:06]}  Ne4 {[%clk 0:01:18]} 24. Bd3 {[%clk 0:00:58]}  g5 {[%clk 0:01:12]} 25. Qh2 {[%clk 0:00:54]}  Bd6 {[%clk 0:01:12]} 26. g3 {[%clk 0:00:50]}  Nec5 {[%clk 0:01:08]} 27. Nxc5 {[%clk 0:00:46]}  Nxc5 {[%clk 0:01:08]} 28. Bc2 {[%clk 0:00:45]}  Bd7 {[%clk 0:00:47]} 29. Be5 {[%clk 0:00:41]}  Bxe5 {[%clk 0:00:33]} 30. Nxe5 {[%clk 0:00:41]}  d4 {[%clk 0:00:30]} 31. h4 {[%clk 0:00:20]}  Qd5 {[%clk 0:00:21]} 32. exd4 {[%clk 0:00:19]}  Qxd4 {[%clk 0:00:21]} 33. Rfe1 {[%clk 0:00:16]}  g4 {[%clk 0:00:09]} 34. Rad1 {[%clk 0:00:15]}  Qb4 {[%clk 0:00:08]} 35. Qg2 {[%clk 0:00:14]}  Be6 {[%clk 0:00:07]} 36. Qf1 {[%clk 0:00:13]}  Bxb3 {[%clk 0:00:07]} 37. Bxb3 {[%clk 0:00:12]}  Nxb3 {[%clk 0:00:07]} 38. Qxa6 {[%clk 0:00:11]}  Kg7 {[%clk 0:00:08]} 39. Qd3 {[%clk 0:00:06]}  a4 {[%clk 0:00:07]} 40. Qf5 {[%clk 0:00:05]}  a3 {[%clk 0:00:05]} 41. Re4 {[%clk 0:00:06]}  Qb6 {[%clk 0:00:03]} 42. Rxg4+ {[%clk 0:00:05]}  Kf8 {[%clk 0:00:03]} 43. Nd7+ {[%clk 0:00:06]}  Rxd7 {[%clk 0:00:03]} 44. Rxd7 {[%clk 0:00:06]}  Rc1+ {[%clk 0:00:02]} 45. Kh2 {[%clk 0:00:07]}  Qe6 {[%clk 0:00:01]} 46. Qxe6 {[%clk 0:00:05]}  fxe6 {[%clk 0:00:01]} 47. Ra4 {[%clk 0:00:06]}  Ke8 {[%clk 0:00:01]} 48. Rb7 {[%clk 0:00:06]} 1-0


[Site "https://www.chess.com"]

[Event "Titled Tuesday Blitz October 11 Late 2022"]
[White "Fernandez De La Vara, Arnaldo"]
[Black "Holt, Conrad"]
[WhiteFideId "3518388"]
[BlackFideId "2034387"]
[WhiteElo "2387"]
[BlackElo "2592"]
[Result "0-1"]
[Round "09"]
[TimeControl "180+1"]
[Date "2022.10.11"]
[WhiteClock "0:00:01"]
[BlackClock "0:00:29"]

1. Nf3 {[%clk 0:03:00]}  d5 {[%clk 0:03:00]} 2. b3 {[%clk 0:03:00]}  Bf5 {[%clk 0:03:00]} 3. Bb2 {[%clk 0:03:01]}  e6 {[%clk 0:03:00]} 4. g3 {[%clk 0:03:02]}  Nd7 {[%clk 0:03:00]} 5. Bg2 {[%clk 0:03:02]}  h6 {[%clk 0:03:01]} 6. O-O {[%clk 0:03:02]}  Ngf6 {[%clk 0:03:01]} 7. d3 {[%clk 0:03:03]}  Be7 {[%clk 0:03:01]} 8. Nbd2 {[%clk 0:03:04]}  O-O {[%clk 0:03:01]} 9. Qe1 {[%clk 0:03:04]}  Bh7 {[%clk 0:02:59]} 10. e4 {[%clk 0:03:05]}  a5 {[%clk 0:02:54]} 11. a4 {[%clk 0:03:05]}  dxe4 {[%clk 0:02:49]} 12. dxe4 {[%clk 0:03:06]}  Nc5 {[%clk 0:02:48]} 13. Ne5 {[%clk 0:03:06]}  Nfd7 {[%clk 0:02:47]} 14. Nxd7 {[%clk 0:02:48]}  Qxd7 {[%clk 0:02:44]} 15. Qe2 {[%clk 0:02:43]}  Rfd8 {[%clk 0:02:43]} 16. Rad1 {[%clk 0:02:25]}  Qc6 {[%clk 0:02:39]} 17. h4 {[%clk 0:02:06]}  Bf8 {[%clk 0:02:28]} 18. Rfe1 {[%clk 0:02:01]}  Rd7 {[%clk 0:02:22]} 19. Nc4 {[%clk 0:01:29]}  Rxd1 {[%clk 0:02:15]} 20. Rxd1 {[%clk 0:01:23]}  Qa6 {[%clk 0:02:02]} 21. Qg4 {[%clk 0:01:13]}  Nxa4 {[%clk 0:01:55]} 22. Ba1 {[%clk 0:01:05]}  Nb6 {[%clk 0:01:50]} 23. Ne5 {[%clk 0:00:59]}  a4 {[%clk 0:01:47]} 24. Bh3 {[%clk 0:00:41]}  axb3 {[%clk 0:01:39]} 25. cxb3 {[%clk 0:00:21]}  Re8 {[%clk 0:01:01]} 26. Qh5 {[%clk 0:00:20]}  Re7 {[%clk 0:01:01]} 27. Nxf7 {[%clk 0:00:11]}  Bxe4 {[%clk 0:00:53]} 28. Nd8 {[%clk 0:00:05]}  Bd5 {[%clk 0:00:41]} 29. Bf1 {[%clk 0:00:05]}  Qa8 {[%clk 0:00:38]} 30. Rxd5 {[%clk 0:00:02]}  exd5 {[%clk 0:00:36]} 31. Bd3 {[%clk 0:00:01]}  Qxa1+ {[%clk 0:00:29]} 0-1


[Site "https://www.chess.com"]

[Event "Titled Tuesday Blitz October 11 Late 2022"]
[White "Gasparyan, David"]
[Black "Ambartsumova, Karina"]
[WhiteFideId "13311980"]
[BlackFideId "4166299"]
[WhiteElo "2343"]
[BlackElo "2299"]
[Result "0-1"]
[Round "09"]
[TimeControl "180+1"]
[Date "2022.10.12"]
[WhiteClock "0:00:02"]
[BlackClock "0:00:23"]

1. d4 {[%clk 0:03:00]}  Nf6 {[%clk 0:02:59]} 2. Nf3 {[%clk 0:02:59]}  g6 {[%clk 0:02:59]} 3. e3 {[%clk 0:02:57]}  Bg7 {[%clk 0:03:00]} 4. Be2 {[%clk 0:02:58]}  O-O {[%clk 0:03:00]} 5. O-O {[%clk 0:02:58]}  c5 {[%clk 0:02:56]} 6. c3 {[%clk 0:02:54]}  b6 {[%clk 0:02:56]} 7. Nbd2 {[%clk 0:02:53]}  Bb7 {[%clk 0:02:55]} 8. Re1 {[%clk 0:02:51]}  d6 {[%clk 0:02:55]} 9. Qc2 {[%clk 0:02:45]}  Nbd7 {[%clk 0:02:50]} 10. e4 {[%clk 0:02:40]}  cxd4 {[%clk 0:02:42]} 11. cxd4 {[%clk 0:02:41]}  Rc8 {[%clk 0:02:38]} 12. Qd3 {[%clk 0:02:24]}  e5 {[%clk 0:02:38]} 13. dxe5 {[%clk 0:02:00]}  dxe5 {[%clk 0:02:23]} 14. b4 {[%clk 0:01:49]}  Qe7 {[%clk 0:02:12]} 15. Ba3 {[%clk 0:01:46]}  Rfd8 {[%clk 0:02:09]} 16. Qb3 {[%clk 0:01:39]}  Nxe4 {[%clk 0:01:57]} 17. Nxe4 {[%clk 0:01:37]}  Bxe4 {[%clk 0:01:58]} 18. Bc4 {[%clk 0:01:10]}  Bb7 {[%clk 0:01:52]} 19. Rac1 {[%clk 0:01:03]}  e4 {[%clk 0:01:44]} 20. Bb2 {[%clk 0:00:43]}  Bxb2 {[%clk 0:01:26]} 21. Qxb2 {[%clk 0:00:44]}  a6 {[%clk 0:01:19]} 22. h4 {[%clk 0:00:30]}  b5 {[%clk 0:01:07]} 23. Bb3 {[%clk 0:00:30]}  Rxc1 {[%clk 0:01:01]} 24. Qxc1 {[%clk 0:00:31]}  Nf6 {[%clk 0:00:46]} 25. Qh6 {[%clk 0:00:15]}  Bd5 {[%clk 0:00:35]} 26. Bxd5 {[%clk 0:00:12]}  Rxd5 {[%clk 0:00:36]} 27. Ng5 {[%clk 0:00:11]}  Re5 {[%clk 0:00:34]} 28. h5 {[%clk 0:00:10]}  Qf8 {[%clk 0:00:33]} 29. Qxf8+ {[%clk 0:00:10]}  Kxf8 {[%clk 0:00:34]} 30. f4 {[%clk 0:00:09]}  Rd5 {[%clk 0:00:32]} 31. Nxe4 {[%clk 0:00:08]}  Nxh5 {[%clk 0:00:29]} 32. Nc5 {[%clk 0:00:08]}  Nxf4 {[%clk 0:00:28]} 33. Nxa6 {[%clk 0:00:07]}  Rd2 {[%clk 0:00:29]} 34. g3 {[%clk 0:00:05]}  Nh3+ {[%clk 0:00:28]} 35. Kh1 {[%clk 0:00:04]}  Nf2+ {[%clk 0:00:28]} 36. Kg1 {[%clk 0:00:04]}  Rxa2 {[%clk 0:00:27]} 37. Nc7 {[%clk 0:00:03]}  Nd3 {[%clk 0:00:27]} 38. Rd1 {[%clk 0:00:03]}  Nxb4 {[%clk 0:00:27]} 39. Nxb5 {[%clk 0:00:03]}  h5 {[%clk 0:00:27]} 40. Nd6 {[%clk 0:00:03]}  Kg7 {[%clk 0:00:24]} 41. Ne4 {[%clk 0:00:04]}  Nc6 {[%clk 0:00:22]} 42. Nf2 {[%clk 0:00:04]}  Ne5 {[%clk 0:00:22]} 43. Rd5 {[%clk 0:00:03]}  Ng4 {[%clk 0:00:21]} 44. Ne4 {[%clk 0:00:02]}  Ra1+ {[%clk 0:00:20]} 45. Kg2 {[%clk 0:00:02]}  Ne3+ {[%clk 0:00:21]} 46. Kf3 {[%clk 0:00:02]}  Nxd5 {[%clk 0:00:22]} 47. Ng5 {[%clk 0:00:02]}  Nf6 {[%clk 0:00:23]} 0-1


[Site "https://www.chess.com"]

[Event "Titled Tuesday Blitz October 11 Late 2022"]
[White "Girel, Joseph"]
[Black "Mazurkiewicz, Michal"]
[WhiteFideId "36033561"]
[BlackFideId "1124943"]
[WhiteElo "2281"]
[BlackElo "2063"]
[Result "1-0"]
[Round "09"]
[TimeControl "180+1"]
[Date "2022.10.11"]
[WhiteClock "0:01:43"]
[BlackClock "0:00:08"]

1. d4 {[%clk 0:03:00]}  Nf6 {[%clk 0:02:59]} 2. c4 {[%clk 0:03:01]}  e5 {[%clk 0:02:59]} 3. dxe5 {[%clk 0:03:00]}  Ng4 {[%clk 0:03:00]} 4. e3 {[%clk 0:02:59]}  Nxe5 {[%clk 0:02:58]} 5. Nh3 {[%clk 0:02:59]}  d5 {[%clk 0:02:58]} 6. cxd5 {[%clk 0:02:56]}  Bxh3 {[%clk 0:02:57]} 7. gxh3 {[%clk 0:02:57]}  Bd6 {[%clk 0:02:56]} 8. Nc3 {[%clk 0:02:56]}  Nbd7 {[%clk 0:02:56]} 9. Be2 {[%clk 0:02:56]}  O-O {[%clk 0:02:54]} 10. Qd4 {[%clk 0:02:54]}  f5 {[%clk 0:02:49]} 11. b3 {[%clk 0:02:49]}  f4 {[%clk 0:02:28]} 12. Bb2 {[%clk 0:02:46]}  fxe3 {[%clk 0:02:21]} 13. fxe3 {[%clk 0:02:41]}  Bc5 {[%clk 0:01:39]} 14. Qe4 {[%clk 0:02:40]}  Qg5 {[%clk 0:01:39]} 15. O-O-O {[%clk 0:02:37]}  Rae8 {[%clk 0:01:20]} 16. Kb1 {[%clk 0:02:32]}  Qxe3 {[%clk 0:00:52]} 17. Bb5 {[%clk 0:02:29]}  a6 {[%clk 0:00:40]} 18. Bxd7 {[%clk 0:02:24]}  Nxd7 {[%clk 0:00:41]} 19. Qg4 {[%clk 0:02:10]}  Ne5 {[%clk 0:00:35]} 20. Qh5 {[%clk 0:01:59]}  Rf2 {[%clk 0:00:35]} 21. Qxe8+ {[%clk 0:01:57]}  Bf8 {[%clk 0:00:34]} 22. Rhe1 {[%clk 0:01:47]}  Qxh3 {[%clk 0:00:08]} 23. Qxe5 {[%clk 0:01:43]} 1-0


[Site "https://www.chess.com"]

[Event "Titled Tuesday Blitz October 11 Late 2022"]
[White "Goryachkina, Aleksandra"]
[Black "Hajiyev, Kanan"]
[WhiteFideId "4147103"]
[BlackFideId "13404148"]
[WhiteElo "2484"]
[BlackElo "2118"]
[Result "1-0"]
[Round "09"]
[TimeControl "180+1"]
[Date "2022.10.11"]
[WhiteClock "0:00:17"]
[BlackClock "0:00:07"]

1. e4 {[%clk 0:03:00]}  c6 {[%clk 0:02:54]} 2. Nf3 {[%clk 0:02:58]}  d5 {[%clk 0:02:54]} 3. Nc3 {[%clk 0:02:58]}  a6 {[%clk 0:02:54]} 4. d4 {[%clk 0:02:54]}  Bg4 {[%clk 0:02:52]} 5. Be2 {[%clk 0:02:51]}  e6 {[%clk 0:02:52]} 6. O-O {[%clk 0:02:49]}  Nf6 {[%clk 0:02:52]} 7. exd5 {[%clk 0:02:43]}  cxd5 {[%clk 0:02:52]} 8. Ne5 {[%clk 0:02:39]}  Bxe2 {[%clk 0:02:51]} 9. Nxe2 {[%clk 0:02:35]}  Nc6 {[%clk 0:02:51]} 10. c4 {[%clk 0:02:28]}  Bd6 {[%clk 0:02:21]} 11. Nxc6 {[%clk 0:02:23]}  bxc6 {[%clk 0:02:22]} 12. Qa4 {[%clk 0:02:23]}  Qc7 {[%clk 0:02:13]} 13. cxd5 {[%clk 0:02:20]}  exd5 {[%clk 0:02:08]} 14. h3 {[%clk 0:02:14]}  O-O {[%clk 0:02:08]} 15. Be3 {[%clk 0:02:14]}  Qb6 {[%clk 0:01:59]} 16. b3 {[%clk 0:02:11]}  Qb5 {[%clk 0:01:59]} 17. Nc3 {[%clk 0:02:07]}  Qxa4 {[%clk 0:01:59]} 18. Nxa4 {[%clk 0:02:07]}  Ba3 {[%clk 0:01:55]} 19. Rfe1 {[%clk 0:02:02]}  Rfe8 {[%clk 0:01:51]} 20. Re2 {[%clk 0:02:00]}  Kf8 {[%clk 0:01:34]} 21. Rd1 {[%clk 0:01:52]}  Re6 {[%clk 0:01:33]} 22. Rc2 {[%clk 0:01:48]}  Ne4 {[%clk 0:01:29]} 23. Nb6 {[%clk 0:01:34]}  Rd8 {[%clk 0:01:20]} 24. Bf4 {[%clk 0:01:29]}  Bd6 {[%clk 0:01:05]} 25. Bxd6+ {[%clk 0:01:23]}  Rdxd6 {[%clk 0:01:06]} 26. Rdc1 {[%clk 0:01:07]}  h5 {[%clk 0:01:02]} 27. Nc8 {[%clk 0:01:05]}  Rd8 {[%clk 0:00:53]} 28. Rxc6 {[%clk 0:01:05]}  Rxc6 {[%clk 0:00:32]} 29. Rxc6 {[%clk 0:01:06]}  a5 {[%clk 0:00:25]} 30. Nb6 {[%clk 0:01:02]}  Ke7 {[%clk 0:00:20]} 31. Rc7+ {[%clk 0:00:51]}  Kf6 {[%clk 0:00:20]} 32. Nd7+ {[%clk 0:00:49]}  Ke6 {[%clk 0:00:13]} 33. Nc5+ {[%clk 0:00:46]}  Nxc5 {[%clk 0:00:13]} 34. Rxc5 {[%clk 0:00:46]}  Ra8 {[%clk 0:00:13]} 35. Kf1 {[%clk 0:00:35]}  Ra7 {[%clk 0:00:12]} 36. Ke2 {[%clk 0:00:35]}  Kd6 {[%clk 0:00:11]} 37. Rb5 {[%clk 0:00:32]}  Kc6 {[%clk 0:00:07]} 38. a4 {[%clk 0:00:32]}  h4 {[%clk 0:00:05]} 39. Kd3 {[%clk 0:00:32]}  g5 {[%clk 0:00:05]} 40. Rb8 {[%clk 0:00:27]}  Re7 {[%clk 0:00:02]} 41. Ra8 {[%clk 0:00:25]}  Kb6 {[%clk 0:00:02]} 42. Rg8 {[%clk 0:00:25]}  f6 {[%clk 0:00:02]} 43. Rg6 {[%clk 0:00:21]}  Re6 {[%clk 0:00:02]} 44. g3 {[%clk 0:00:22]}  hxg3 {[%clk 0:00:02]} 45. fxg3 {[%clk 0:00:23]}  Rc6 {[%clk 0:00:02]} 46. h4 {[%clk 0:00:23]}  gxh4 {[%clk 0:00:03]} 47. gxh4 {[%clk 0:00:23]}  Rc1 {[%clk 0:00:03]} 48. Rxf6+ {[%clk 0:00:23]}  Kb7 {[%clk 0:00:04]} 49. Rd6 {[%clk 0:00:22]}  Rh1 {[%clk 0:00:04]} 50. Rxd5 {[%clk 0:00:21]}  Rh3+ {[%clk 0:00:03]} 51. Kc4 {[%clk 0:00:21]}  Rxh4 {[%clk 0:00:04]} 52. Rxa5 {[%clk 0:00:21]}  Kb6 {[%clk 0:00:04]} 53. Rb5+ {[%clk 0:00:21]}  Kc6 {[%clk 0:00:05]} 54. Rf5 {[%clk 0:00:22]}  Rh2 {[%clk 0:00:05]} 55. Rf6+ {[%clk 0:00:22]}  Kb7 {[%clk 0:00:06]} 56. b4 {[%clk 0:00:22]}  Rc2+ {[%clk 0:00:06]} 57. Kb5 {[%clk 0:00:22]}  Rd2 {[%clk 0:00:07]} 58. Rf4 {[%clk 0:00:20]}  Rd1 {[%clk 0:00:06]} 59. a5 {[%clk 0:00:20]}  Ra1 {[%clk 0:00:06]} 60. d5 {[%clk 0:00:18]}  Kc7 {[%clk 0:00:06]} 61. Rf7+ {[%clk 0:00:18]}  Kd6 {[%clk 0:00:07]} 62. Kb6 {[%clk 0:00:18]}  Rb1 {[%clk 0:00:07]} 63. b5 {[%clk 0:00:18]}  Kxd5 {[%clk 0:00:06]} 64. a6 {[%clk 0:00:19]}  Ke6 {[%clk 0:00:06]} 65. Rf2 {[%clk 0:00:18]}  Rb3 {[%clk 0:00:06]} 66. a7 {[%clk 0:00:18]}  Ra3 {[%clk 0:00:06]} 67. Kb7 {[%clk 0:00:18]}  Ra2 {[%clk 0:00:07]} 68. Rxa2 {[%clk 0:00:17]} 1-0


[Site "https://www.chess.com"]

[Event "Titled Tuesday Blitz October 11 Late 2022"]
[White "Grinev, Valeriy"]
[Black "Korchmar, Vasiliy"]
[WhiteFideId "14117517"]
[BlackFideId "24131750"]
[WhiteElo "2365"]
[BlackElo "2370"]
[Result "0-1"]
[Round "09"]
[TimeControl "180+1"]
[Date "2022.10.11"]
[WhiteClock "0:00:12"]
[BlackClock "0:00:04"]

1. d4 {[%clk 0:03:00]}  d5 {[%clk 0:02:59]} 2. c4 {[%clk 0:03:01]}  c6 {[%clk 0:02:59]} 3. cxd5 {[%clk 0:03:01]}  cxd5 {[%clk 0:02:59]} 4. Bf4 {[%clk 0:03:02]}  Nc6 {[%clk 0:02:58]} 5. e3 {[%clk 0:03:02]}  Nf6 {[%clk 0:02:58]} 6. Nc3 {[%clk 0:03:02]}  a6 {[%clk 0:02:51]} 7. Bd3 {[%clk 0:03:02]}  Bg4 {[%clk 0:02:50]} 8. Nge2 {[%clk 0:03:02]}  e6 {[%clk 0:02:50]} 9. Rc1 {[%clk 0:03:00]}  Bd6 {[%clk 0:02:47]} 10. f3 {[%clk 0:02:57]}  Bh5 {[%clk 0:02:47]} 11. O-O {[%clk 0:02:54]}  O-O {[%clk 0:02:46]} 12. Bxd6 {[%clk 0:02:46]}  Qxd6 {[%clk 0:02:47]} 13. Nf4 {[%clk 0:02:47]}  Bg6 {[%clk 0:02:47]} 14. Nxg6 {[%clk 0:02:45]}  hxg6 {[%clk 0:02:48]} 15. Na4 {[%clk 0:02:29]}  e5 {[%clk 0:02:48]} 16. Bb1 {[%clk 0:02:25]}  exd4 {[%clk 0:02:45]} 17. exd4 {[%clk 0:02:25]}  Qf4 {[%clk 0:02:39]} 18. Nc5 {[%clk 0:02:07]}  Nxd4 {[%clk 0:02:39]} 19. Qd3 {[%clk 0:01:57]}  b6 {[%clk 0:01:20]} 20. g3 {[%clk 0:01:32]}  Nxf3+ {[%clk 0:00:42]} 21. Qxf3 {[%clk 0:01:31]}  Qd4+ {[%clk 0:00:41]} 22. Qf2 {[%clk 0:01:27]}  bxc5 {[%clk 0:00:42]} 23. Rxc5 {[%clk 0:01:23]}  Qe5 {[%clk 0:00:33]} 24. Re1 {[%clk 0:01:20]}  Qh5 {[%clk 0:00:30]} 25. Bd3 {[%clk 0:01:06]}  Rfe8 {[%clk 0:00:29]} 26. Rcc1 {[%clk 0:00:38]}  a5 {[%clk 0:00:26]} 27. Bb5 {[%clk 0:00:34]}  Rxe1+ {[%clk 0:00:24]} 28. Rxe1 {[%clk 0:00:35]}  d4 {[%clk 0:00:20]} 29. Be2 {[%clk 0:00:34]}  Qc5 {[%clk 0:00:11]} 30. Bd3 {[%clk 0:00:33]}  Rd8 {[%clk 0:00:11]} 31. Qf4 {[%clk 0:00:32]}  Qb4 {[%clk 0:00:09]} 32. Re2 {[%clk 0:00:31]}  a4 {[%clk 0:00:09]} 33. a3 {[%clk 0:00:29]}  Qb3 {[%clk 0:00:10]} 34. Qf3 {[%clk 0:00:28]}  Qa2 {[%clk 0:00:05]} 35. Kg2 {[%clk 0:00:27]}  Qb3 {[%clk 0:00:05]} 36. h4 {[%clk 0:00:24]}  Nd5 {[%clk 0:00:04]} 37. Rf2 {[%clk 0:00:18]}  Ne3+ {[%clk 0:00:04]} 38. Kh2 {[%clk 0:00:19]}  Qxd3 {[%clk 0:00:05]} 39. Qxf7+ {[%clk 0:00:18]}  Kh7 {[%clk 0:00:05]} 40. Qf3 {[%clk 0:00:18]}  Qf5 {[%clk 0:00:04]} 41. h5 {[%clk 0:00:13]}  Qxf3 {[%clk 0:00:04]} 42. Rxf3 {[%clk 0:00:12]}  gxh5 {[%clk 0:00:04]} 0-1


[Site "https://www.chess.com"]